fUSD/lending_fUSD_20240214
["ID","MTS","AMOUNT","RATE_DAILY","PERIOD"]
[313977189,1707902106258,689.09385357,0.000219,2]
[313977190,1707902107583,4270.20264567,0.000219,2]
[313977191,1707902107816,1912.95752079,0.000219,2]
[313977192,1707902108003,200.0,0.00021248,2]
[313977193,1707902113314,843.31802643,0.000219,2]
[313977194,1707902114507,5905.70291801,0.000219,2]
[313977195,1707902114536,375.69833359,0.000219,2]
[313977196,1707902117837,10557.85314847,0.000219,2]
[313977197,1707902117881,935.80843748,0.000219,2]
[313977198,1707902118021,197.49422438,0.000219,2]
[313977199,1707902119767,251.41676213,0.000219,2]
[313977200,1707902120327,689.09385357,0.000219,2]
[313977201,1707902121329,280.74610907,0.000219,2]
[313977202,1707902121442,233.63778966,0.00028,120]
[313977203,1707902122116,770.96312572,0.000219,2]
[313977204,1707902122845,261.72893916,0.000219,2]
[313977205,1707902125563,1081.97889004,0.000219,2]
[313977206,1707902125792,1912.95752079,0.000219,2]
[313977207,1707902138121,771.40980765,0.000219,2]
[313977208,1707902139948,8302.80744309,0.000219,2]
[313977209,1707902142344,689.09385357,0.000219,2]
[313977210,1707902144936,24484.38826566,0.000219,2]
[313977211,1707902145352,261.72893916,0.000219,2]
[313977212,1707902145941,1056.54196842,0.000219,2]
[313977213,1707902150796,161.42119264,0.000219,2]
[313977214,1707902151073,402.83821741,0.000219,2]
[313977215,1707902151890,1912.95752079,0.000219,2]
[313977216,1707902152448,163.17920846,0.000219,2]
[313977217,1707902154210,1238.23304299,0.000219,2]
[313977218,1707902159918,490.49089314,0.000219,2]
[313977219,1707902160935,956.44451236,0.000219,2]
[313977220,1707902161182,43246.9662604,0.000219,2]
[313977221,1707902163518,207.67,0.0002149,2]
[313977222,1707902163979,207.67,0.00021549,2]
[313977223,1707902164145,207.67,0.00021608,2]
[313977224,1707902164338,207.67,0.00021666,2]
[313977225,1707902164550,207.67,0.00021725,2]
[313977226,1707902164744,207.67,0.00021784,2]
[313977227,1707902164957,207.67,0.00021843,2]
[313977228,1707902165882,263.69392092,0.000219,2]
[313977229,1707902167500,216.34118359,0.00021548,2]
[313977230,1707902168136,193.71117423,0.00024424,9]
[313977231,1707902169617,311.93606358,0.00021548,2]
[313977232,1707902201015,689.98,0.00021236,2]
[313977233,1707902218772,449.15,0.00019318,2]
[313977234,1707902218972,449.15,0.00021582,2]
[313977235,1707902220958,163.17920846,0.000219,2]
[313977236,1707902222747,1238.23304299,0.000219,2]
[313977237,1707902225937,632.53888103,0.000219,2]
[313977238,1707902226559,200.40974963,0.000219,2]
[313977239,1707902235579,402.83821741,0.000219,2]
[313977240,1707902236349,1912.95752079,0.000219,2]
[313977241,1707902241021,204.58087699,0.000219,2]
[313977242,1707902243684,-193.71117423,0.00022899,6]
[313977243,1707902249913,200.0,0.00021265,2]
[313977244,1707902250340,200.0,0.00026582,120]
[313977245,1707902265186,174.43474662,0.00022468,30]
[313977246,1707902271386,2000.0,0.00021265,2]
[313977247,1707902275286,157.45,0.00021265,2]
[313977248,1707902282631,150.0,0.000219,2]
[313977249,1707902290169,6610.47,0.00021274,2]
[313977250,1707902291260,1238.23304299,0.000219,2]
[313977251,1707902302449,632.53888103,0.000219,2]
[313977252,1707902302816,1912.95752079,0.000219,2]
[313977253,1707902302884,173.75,0.00021299,2]
[313977254,1707902309539,204.58087699,0.000219,2]
[313977255,1707902344967,250.0,0.00021292,2]
[313977256,1707902364403,163.46,0.00021281,2]
[313977257,1707902380833,157.8538757,0.00021818,2]
[313977258,1707902381325,1912.95752079,0.000219,2]
[313977259,1707902385684,157.85387566,0.000219,2]
[313977260,1707902404249,209.0,0.00021331,2]
[313977261,1707902405075,4724.98044275,0.000219,2]
[313977262,1707902409153,150.0,0.000219,2]
[313977263,1707902411446,874.8446,0.00022466,10]
[313977264,1707902413423,354.54,0.000219,2]
[313977265,1707902415803,440.74,0.00021322,2]
[313977266,1707902418504,258.62,0.000219,2]
[313977267,1707902423766,168.19,0.0002185,2]
[313977268,1707902443452,172.41,0.00021284,2]
[313977269,1707902451846,1912.95752079,0.000219,2]
[313977270,1707902453764,150.0,0.00021315,2]
[313977271,1707902478964,803.91,0.00021322,2]
[313977272,1707902522983,38837.69,0.000281,100]
[313977273,1707902526364,1912.95752079,0.000219,2]
[313977274,1707902532973,464.0,0.000219,2]
[313977275,1707902536948,672.06,0.00021253,2]
[313977276,1707902571426,308.75,0.00021249,2]
[313977277,1707902586886,203.0,0.00021331,2]
[313977278,1707902600906,774.80039178,0.000219,2]
[313977280,1707902604857,1912.95752079,0.000219,2]
[313977281,1707902629529,11988.0654,0.00021801,2]
[313977282,1707902670683,424.69,0.00019258,2]
[313977283,1707902670892,424.69,0.00021522,2]
[313977284,1707902672187,655.65,0.00021176,2]
[313977285,1707902678874,200.0,0.00021253,2]
[313977286,1707902689839,151.01,0.00021346,2]
[313977287,1707902690241,151.01,0.00021404,2]
[313977288,1707902690477,151.01,0.00021463,2]
[313977289,1707902690687,151.01,0.00021521,2]
[313977290,1707902690902,151.01,0.0002158,2]
[313977291,1707902691116,151.01,0.00021639,2]
[313977292,1707902691320,151.01,0.00021697,2]
[313977293,1707902691548,151.01,0.00021756,2]
[313977294,1707902691789,151.01,0.00021814,2]
[313977295,1707902692197,151.01,0.00021873,2]
[313977296,1707902710853,370.0,0.00028199,120]
[313977297,1707902717361,1912.95752079,0.000219,2]
[313977298,1707902721625,2000.0,0.00021179,2]
[313977299,1707902742370,750.0,0.00021193,2]
[313977300,1707902750851,200.0,0.00021193,2]
[313977400,1707902804587,-176.00850026,0.00021901,2]
[313977401,1707902807136,1272.6,0.00021186,2]
[313977402,1707902807454,1272.6,0.00021298,2]
[313977403,1707902807631,1272.6,0.00021409,2]
[313977404,1707902807831,1272.6,0.00021521,2]
[313977405,1707902808033,1272.6,0.00021632,2]
[313977406,1707902808254,1272.6,0.00021744,2]
[313977407,1707902809001,1272.6,0.00021855,2]
[313977408,1707902809396,250.0,0.00021186,2]
[313977409,1707902821724,300.0,0.000219,2]
[313977410,1707902822547,150.0,0.000219,2]
[313977413,1707902834674,200.0,0.000224,8]
[313977414,1707902836841,500.0,0.000225,8]
[313977415,1707902838987,800.0,0.000226,8]
[313977416,1707902841101,1100.0,0.000227,8]
[313977417,1707902848812,1300.0,0.000228,8]
[313977418,1707902850064,200.0,0.000229,8]
[313977419,1707902851300,171.69,0.00021186,2]
[313977420,1707902910039,167.24,0.00021193,2]
[313977421,1707902914525,378.78,0.00021194,2]
[313977422,1707902923084,520.96,0.00021194,2]
[313977423,1707902923292,172.41,0.00021194,2]
[313977429,1707902975442,14853.73,0.00021213,2]
[313977430,1707902984989,1237.16470233,0.000282,120]
[313977431,1707903001631,300.0,0.000219,2]
[313977435,1707903029943,151.74353677,0.000219,2]
[313977463,1707903031834,-655.26692035,0.00021901,2]
[313977472,1707903033550,-584.63693041,0.00021901,2]
[313977473,1707903033564,-333.00815705,0.00021901,2]
[313977474,1707903033575,-113.95614348,0.00021901,2]
[313977475,1707903033587,-843.45165044,0.00021901,3]
[313977476,1707903033599,-10009.48805901,0.00021901,3]
[313977477,1707903033609,-228.24795956,0.00021909,2]
[313977478,1707903033618,-119.76564876,0.00021918,2]
[313977479,1707903033630,-2495.32435124,0.00021918,2]
[313977480,1707903033640,-250.0,0.00021918,2]
[313977481,1707903033651,-151.01,0.00021931,2]
[313977482,1707903033661,-1272.6,0.00021967,2]
[313977483,1707903033671,-157.85387566,0.00021982,2]
[313977484,1707903033680,-151.01,0.0002199,2]
[313977485,1707903033690,-331.2,0.00022,2]
[313977486,1707903033699,-224.99,0.00022,3]
[313977487,1707903033708,-4573.57596582,0.00022,2]
[313977488,1707903033729,-2283.69403418,0.00022,2]
[313977489,1707903033738,-150.99,0.00022,2]
[313977490,1707903033747,-764.00895678,0.00022,2]
[313977491,1707903033760,-293.05104322,0.00022,2]
[313977492,1707903033769,-697.62259051,0.00022003,2]
[313977493,1707903033779,-80.95120397,0.00022008,2]
[313977494,1707903033790,-694.91115695,0.00022008,2]
[313977495,1707903033800,-209.13248811,0.00022008,2]
[313977496,1707903033809,-736.28183122,0.00022009,2]
[313977497,1707903033819,-155.0,0.00022012,2]
[313977499,1707903033828,-343.45479374,0.00022012,2]
[313977501,1707903033837,-468.86466092,0.00022012,2]
[313977503,1707903033847,-202.89209826,0.00022013,2]
[313977504,1707903033889,-731.77591494,0.00022013,2]
[313977506,1707903033910,-13403.95471199,0.00022013,2]
[313977508,1707903033921,-499.99,0.00022013,2]
[313977510,1707903033930,-625.12,0.00022013,2]
[313977512,1707903033940,-690.74,0.00022013,2]
[313977514,1707903033949,-389.67,0.00022013,2]
[313977516,1707903033959,-18186.53,0.00022013,2]
[313977518,1707903033968,-1635.74,0.00022014,2]
[313977520,1707903033978,-206.88811688,0.00022014,2]
[313977522,1707903033987,-10634.40658898,0.00022015,2]
[313977523,1707903033997,-1401.12227429,0.00022016,2]
[313977526,1707903034008,-515.42,0.00022037,2]
[313977528,1707903034017,-151.01,0.00022048,2]
[313977530,1707903034027,-157.85387566,0.00022064,2]
[313977532,1707903034037,-1272.6,0.00022078,2]
[313977534,1707903034045,-1340.10592125,0.00022098,2]
[313977535,1707903034054,-151.01,0.00022107,2]
[313977537,1707903034064,-157.85387566,0.00022145,2]
[313977539,1707903034074,-94358.0,0.00022146,2]
[313977540,1707903034083,-151.01,0.00022165,2]
[313977541,1707903034092,-1272.6,0.0002219,2]
[313977542,1707903034102,-151.01,0.00022224,2]
[313977543,1707903034111,-157.85387566,0.00022227,2]
[313977544,1707903034121,-167.24,0.00022252,2]
[313977545,1707903034130,-151.01,0.00022283,2]
[313977546,1707903034139,-3573.92552262,0.000223,2]
[313977547,1707903034148,-1272.6,0.00022301,2]
[313977548,1707903034158,-932.63902662,0.00022302,2]
[313977549,1707903034167,-157.85387566,0.00022309,2]
[313977550,1707903034177,-1281.24946351,0.00022327,2]
[313977551,1707903034192,-151.01,0.00022341,2]
[313977552,1707903034201,-266.3223,0.0002237,2]
[313977553,1707903034211,-1340.10592125,0.0002239,2]
[313977554,1707903034221,-157.85387566,0.00022391,2]
[313977555,1707903034231,-281.10874192,0.00022398,2]
[313977556,1707903034240,-654.64728431,0.00022399,2]
[313977557,1707903034249,-151.01,0.000224,2]
[313977558,1707903034260,-207.0786,0.000224,2]
[313977559,1707903034270,-292310.6624,0.000224,2]
[313977560,1707903034279,-1272.6,0.00022413,2]
[313977561,1707903034289,-151.01,0.00022458,2]
[313977562,1707903034298,-2912.77981634,0.00022468,2]
[313977563,1707903034308,-407.18368949,0.00022468,2]
[313977564,1707903034318,-346.60031036,0.00022468,2]
[313977565,1707903034327,-213.32782508,0.00022468,2]
[313977566,1707903034337,-319.42372651,0.00022468,2]
[313977567,1707903034346,-352.32215072,0.00022468,2]
[313977568,1707903034355,-913.69100579,0.00022468,2]
[313977569,1707903034365,-439.50818204,0.00022468,2]
[313977570,1707903034374,-199.08994191,0.00022468,2]
[313977571,1707903034383,-202.96856055,0.00022469,2]
[313977572,1707903034392,-157.85387566,0.00022473,2]
[313977573,1707903034401,-209.0,0.00022479,2]
[313977574,1707903034411,-222.35281875,0.0002249,2]
[313977575,1707903034421,-161.799759,0.00022496,2]
[313977576,1707903034431,-669.36510192,0.00022496,2]
[313977577,1707903034441,-561.76662701,0.00022496,2]
[313977578,1707903034450,-2398.91789706,0.00022498,2]
[313977579,1707903034460,-530.82392786,0.00022498,2]
[313977580,1707903034469,-130088.76365621,0.000225,2]
[313977581,1707903034478,-1000.0,0.000225,2]
[313977582,1707903034487,-1272.6,0.00022524,2]
[313977583,1707903034496,-669.36510192,0.00022547,2]
[313977584,1707903034687,-157.85387566,0.00022555,2]
[313977585,1707903034696,-172.41,0.00022564,2]
[313977586,1707903034705,-1281.24946351,0.00022571,2]
[313977587,1707903034715,-245000.0,0.00022596,2]
[313977588,1707903034724,-2336.1162,0.00022596,2]
[313977589,1707903034733,-41683.3951,0.00022596,2]
[313977590,1707903034743,-183.15682716,0.00022596,2]
[313977591,1707903034753,-186.85902604,0.00022596,2]
[313977592,1707903034764,-169.31838675,0.00022597,2]
[313977593,1707903034773,-3164.09775082,0.00022597,2]
[313977594,1707903034783,-669.36510192,0.00022597,2]
[313977595,1707903034792,-161.799759,0.00022631,2]
[313977596,1707903034801,-1272.6,0.00022636,2]
[313977597,1707903034811,-157.85387566,0.00022636,2]
[313977598,1707903034820,-216.43397619,0.00022675,2]
[313977599,1707903034830,-1340.10592125,0.00022677,2]
[313977600,1707903034839,-704.28397071,0.00022695,2]
[313977601,1707903034849,-208.40334228,0.00022695,2]
[313977602,1707903034858,-263.86099787,0.00022695,2]
[313977603,1707903034868,-3152.30386731,0.00022695,2]
[313977604,1707903034878,-366.70498511,0.00022695,2]
[313977605,1707903034887,-1530.84996415,0.00022695,2]
[313977606,1707903034897,-1056.65436371,0.00022696,2]
[313977607,1707903034907,-1145.64112519,0.00022696,2]
[313977608,1707903034917,-139113.06035587,0.00022696,2]
[313977609,1707903034926,-500.0,0.00022696,2]
[313977610,1707903034935,-500.0,0.00022696,2]
[313977611,1707903034945,-500.0,0.00022696,2]
[313977612,1707903034954,-500.0,0.00022696,2]
[313977613,1707903034964,-500.0,0.00022696,2]
[313977614,1707903034973,-500.0,0.00022696,2]
[313977615,1707903034983,-500.0,0.00022696,2]
[313977616,1707903034993,-500.0,0.00022696,2]
[313977617,1707903035002,-500.0,0.00022696,2]
[313977618,1707903035013,-500.0,0.00022696,2]
[313977619,1707903035023,-500.0,0.00022696,2]
[313977620,1707903035033,-500.0,0.00022696,2]
[313977621,1707903035042,-500.0,0.00022696,2]
[313977622,1707903035052,-500.0,0.00022696,2]
[313977623,1707903035064,-500.0,0.00022696,2]
[313977624,1707903035074,-500.0,0.00022696,2]
[313977625,1707903035084,-500.0,0.00022696,2]
[313977626,1707903035095,-285.20779387,0.00022696,2]
[313977627,1707903035105,-500.0,0.00022696,2]
[313977628,1707903035115,-500.0,0.00022696,2]
[313977629,1707903035126,-500.0,0.00022696,2]
[313977630,1707903035138,-203.44753508,0.00022696,2]
[313977631,1707903035148,-500.0,0.00022696,2]
[313977632,1707903035158,-500.0,0.00022696,2]
[313977633,1707903035168,-500.0,0.00022696,2]
[313977634,1707903035178,-500.0,0.00022696,2]
[313977635,1707903035189,-565483.36490877,0.00022697,2]
[313977636,1707903035199,-420.51851356,0.00022697,2]
[313977637,1707903035209,-301.746334,0.00022697,2]
[313977638,1707903035220,-635.10659731,0.00022697,2]
[313977639,1707903035230,-2218.19327361,0.00022697,2]
[313977640,1707903035241,-155.20618219,0.00022698,2]
[313977641,1707903035251,-284.83645536,0.00022698,2]
[313977642,1707903035263,-157.1305501,0.00022698,2]
[313977643,1707903035274,-668.16470588,0.00022698,2]
[313977644,1707903035283,-289.70021411,0.00022698,2]
[313977645,1707903035296,-413.39356249,0.00022698,2]
[313977646,1707903035307,-242.88266541,0.00022698,2]
[313977647,1707903035316,-155.0,0.00022698,2]
[313977648,1707903035326,-158.34814295,0.00022698,2]
[313977649,1707903035336,-155.71427867,0.00022698,2]
[313977650,1707903035346,-155.36549863,0.00022698,2]
[313977651,1707903035355,-294.25360057,0.00022698,2]
[313977652,1707903035364,-298.72676674,0.00022698,2]
[313977653,1707903035374,-245.77591593,0.00022698,2]
[313977654,1707903035384,-639.08636946,0.00022698,2]
[313977655,1707903035394,-284.38164498,0.00022698,2]
[313977656,1707903035403,-338.76210274,0.00022698,2]
[313977657,1707903035412,-3677.49703489,0.00022698,2]
[313977658,1707903035422,-561.766627,0.00022698,2]
[313977659,1707903035432,-1038.75,0.00022699,2]
[313977660,1707903035441,-157.85387566,0.00022718,2]
[313977661,1707903035451,-716.29,0.0002272,2]
[313977662,1707903035460,-1272.6,0.00022747,2]
[313977663,1707903035469,-161.799759,0.00022765,2]
[313977664,1707903035479,-39471.2436,0.000228,2]
[313977665,1707903035488,-582.1848,0.000228,2]
[313977666,1707903035499,-12166.3902,0.000228,2]
[313977667,1707903035510,-100000.0,0.000228,2]
[313977668,1707903035520,-4539.6917,0.000228,2]
[313977669,1707903035529,-1000.0,0.000228,2]
[313977670,1707903035538,-10441.538,0.000228,2]
[313977671,1707903035548,-157.85387566,0.000228,2]
[313977672,1707903035557,-5000.0,0.000228,2]
[313977673,1707903035566,-578.72597562,0.000228,2]
[313977674,1707903035576,-282.17728277,0.000228,2]
[313977675,1707903035585,-217.65356208,0.000228,2]
[313977676,1707903035594,-452.73645907,0.000228,2]
[313977677,1707903035603,-489.4389386,0.000228,2]
[313977678,1707903035613,-154.6319893,0.000228,4]
[313977679,1707903035622,-200.0,0.00022815,2]
[313977680,1707903035631,-800.0,0.00022815,2]
[313977681,1707903035641,-500.0,0.00022815,2]
[313977682,1707903035650,-200.0,0.00022816,2]
[313977683,1707903035660,-800.0,0.00022816,2]
[313977684,1707903035669,-800.0,0.00022816,2]
[313977685,1707903035679,-200.0,0.00022816,2]
[313977686,1707903035688,-200.0,0.00022816,2]
[313977687,1707903035698,-500.0,0.00022816,2]
[313977688,1707903035708,-655.65,0.0002282,2]
[313977689,1707903035718,-1272.6,0.00022859,2]
[313977690,1707903035727,-983.81159035,0.00022898,2]
[313977691,1707903035736,-4670.40946995,0.00022898,2]
[313977692,1707903035746,-156.10743605,0.00022898,2]
[313977693,1707903035757,-704.20729416,0.00022898,2]
[313977694,1707903035767,-199.47069361,0.00022898,2]
[313977695,1707903035776,-519.661,0.00022898,2]
[313977696,1707903035786,-216.44378328,0.00022898,2]
[313977697,1707903035796,-331.21304537,0.00022898,2]
[313977698,1707903035806,-3231.5750012,0.00022898,2]
[313977699,1707903035816,-2269.77957861,0.00022899,2]
[313977700,1707903035826,-156.14677915,0.00022899,2]
[313977701,1707903035836,-282.53144061,0.00022899,2]
[313977702,1707903035846,-156.94462651,0.00022899,2]
[313977703,1707903035857,-391.00097642,0.00022899,2]
[313977704,1707903035867,-279.94615861,0.00022899,2]
[313977705,1707903035877,-157.02308234,0.00022899,2]
[313977706,1707903035886,-501975.43161755,0.00022899,3]
[313977707,1707903035896,-224421.72890761,0.000229,2]
[313977708,1707903035931,-986.46397527,0.000229,2]
[313977709,1707903035951,-1460.75587726,0.000229,2]
[313977710,1707903035964,-3063.6606,0.000229,2]
[313977711,1707903035979,-25653.99999999,0.000229,2]
[313977712,1707903035992,-1259.03570238,0.000229,2]
[313977713,1707903036005,-25644.23947556,0.000229,2]
[313977714,1707903036236,-6.80770016,0.000229,2]
[313977715,1707903036665,258.62,0.000219,2]
[313977732,1707903037977,-266.10475118,0.00022037,2]
[313977733,1707903037988,-56134.09454098,0.000229,2]
[313977734,1707903038003,-494.00740876,0.000229,2]
[313977735,1707903038064,-839.96657041,0.000229,2]
[313977736,1707903038077,-21820.0,0.000229,2]
[313977737,1707903038089,-33438.28002496,0.000229,2]
[313977738,1707903038100,-3687.80050258,0.000229,2]
[313977739,1707903038111,-7771.9711,0.000229,2]
[313977740,1707903038122,-6272.6778,0.000229,2]
[313977741,1707903038132,-50.27057246,0.000229,2]
[313977742,1707903038145,-495.33075178,0.000229,2]
[313977743,1707903038162,-454.44817199,0.000229,2]
[313977744,1707903038174,-3940.67710377,0.000229,2]
[313977745,1707903038185,-409.16925857,0.000229,2]
[313977746,1707903038198,-90.83074143,0.000229,2]
[313977747,1707903038208,-161.799759,0.000229,2]
[313977748,1707903038221,-561.766627,0.000229,2]
[313977749,1707903038231,-25421.5051,0.000229,2]
[313977750,1707903038240,-1272.6,0.0002297,2]
[313977751,1707903038250,-7999.99,0.00022986,3]
[313977752,1707903038263,-519.5788001,0.00022987,2]
[313977753,1707903038273,-222.35281875,0.0002299,2]
[313977754,1707903038284,-315.93907995,0.00022998,2]
[313977755,1707903038295,-208.47203459,0.00022998,2]
[313977756,1707903038305,-424.76585799,0.00022998,2]
[313977757,1707903038314,-1040.4954198,0.00022998,2]
[313977758,1707903038325,-481.080241,0.00022998,2]
[313977759,1707903038335,-3416.71473678,0.00022998,2]
[313977760,1707903038345,-1176.59774176,0.00022998,2]
[313977761,1707903038354,-155.0,0.00022998,2]
[313977762,1707903038363,-1050.85386154,0.00022998,2]
[313977763,1707903038373,-5325.75894591,0.00022998,5]
[313977764,1707903038383,-389.21230668,0.00022998,2]
[313977765,1707903038392,-215.48805778,0.00022998,2]
[313977766,1707903038402,-269.91410882,0.00022998,2]
[313977767,1707903038412,-220.3694197,0.00022998,2]
[313977768,1707903038421,-158.67878115,0.00022998,2]
[313977769,1707903038430,-155.28034316,0.00022998,2]
[313977770,1707903038440,-155.0,0.00022998,2]
[313977771,1707903038449,-1374.50430544,0.00022998,2]
[313977772,1707903038459,-1239.0576,0.00022998,2]
[313977773,1707903038468,-155.52675014,0.00022998,2]
[313977774,1707903038477,-156.28787644,0.00022998,2]
[313977775,1707903038487,-157.30846236,0.00022998,2]
[313977776,1707903038496,-5422.70391711,0.00022998,2]
[313977777,1707903038506,-283.89703528,0.00022998,2]
[313977778,1707903038519,-1178.76017596,0.00022998,2]
[313977779,1707903038529,-155.0,0.00022998,2]
[313977780,1707903038540,-155.45150205,0.00022998,2]
[313977781,1707903038549,-284.28480565,0.00022998,2]
[313977782,1707903038560,-191.67537881,0.00022998,2]
[313977783,1707903038570,-155.18123601,0.00022998,2]
[313977784,1707903038580,-460.22942243,0.00022998,2]
[313977785,1707903038590,-2083.44984141,0.00022998,2]
[313977786,1707903038601,-670.84404934,0.00022998,2]
[313977787,1707903038611,-155.89113478,0.00022998,2]
[313977788,1707903038620,-155.0,0.00022998,2]
[313977789,1707903038630,-2331.62604922,0.00022998,2]
[313977790,1707903038640,-156.13278491,0.00022998,2]
[313977791,1707903038650,-364.10042681,0.00022998,2]
[313977792,1707903038660,-1261.37348646,0.00022998,2]
[313977793,1707903038670,-158.8409691,0.00022998,2]
[313977794,1707903038680,-157.11465594,0.00022998,2]
[313977795,1707903038690,-151.016,0.00022998,3]
[313977796,1707903038701,-151.016,0.00022998,3]
[313977797,1707903038711,-151.016,0.00022998,3]
[313977798,1707903038721,-151.016,0.00022998,3]
[313977799,1707903038731,-151.016,0.00022998,3]
[313977800,1707903038741,-151.016,0.00022998,3]
[313977801,1707903038751,-151.016,0.00022998,3]
[313977802,1707903038764,-151.016,0.00022998,3]
[313977803,1707903038775,-151.016,0.00022998,3]
[313977804,1707903038786,-151.016,0.00022998,3]
[313977805,1707903038797,-151.016,0.00022998,3]
[313977806,1707903038807,-151.016,0.00022998,3]
[313977807,1707903038818,-151.016,0.00022998,3]
[313977808,1707903038828,-151.016,0.00022998,3]
[313977809,1707903038838,-151.016,0.00022998,3]
[313977810,1707903038848,-151.016,0.00022998,3]
[313977811,1707903038858,-151.016,0.00022998,3]
[313977812,1707903038867,-151.016,0.00022998,3]
[313977813,1707903038877,-151.016,0.00022998,3]
[313977814,1707903038888,-151.016,0.00022998,3]
[313977815,1707903038898,-151.016,0.00022998,3]
[313977816,1707903038907,-151.016,0.00022998,3]
[313977817,1707903038916,-151.016,0.00022998,3]
[313977818,1707903038925,-151.016,0.00022998,3]
[313977819,1707903038934,-151.016,0.00022998,3]
[313977820,1707903038944,-151.016,0.00022998,3]
[313977821,1707903038953,-151.016,0.00022998,3]
[313977822,1707903038962,-151.016,0.00022998,3]
[313977823,1707903038971,-151.016,0.00022998,3]
[313977824,1707903038980,-151.016,0.00022998,3]
[313977825,1707903038990,-151.016,0.00022998,3]
[313977826,1707903038999,-151.016,0.00022998,3]
[313977827,1707903039008,-151.016,0.00022998,3]
[313977828,1707903039019,-151.016,0.00022998,3]
[313977829,1707903039029,-151.016,0.00022998,3]
[313977830,1707903039039,-151.016,0.00022998,3]
[313977831,1707903039049,-151.016,0.00022998,3]
[313977832,1707903039059,-151.016,0.00022998,3]
[313977833,1707903039068,-151.016,0.00022998,3]
[313977834,1707903039078,-151.016,0.00022998,3]
[313977835,1707903039089,-151.016,0.00022998,3]
[313977836,1707903039099,-151.016,0.00022998,3]
[313977837,1707903039108,-151.016,0.00022998,3]
[313977838,1707903039117,-151.016,0.00022998,3]
[313977839,1707903039126,-151.016,0.00022998,3]
[313977840,1707903039136,-151.016,0.00022998,3]
[313977841,1707903039147,-151.016,0.00022998,3]
[313977842,1707903039157,-151.016,0.00022998,3]
[313977843,1707903039167,-151.016,0.00022998,3]
[313977844,1707903039176,-151.016,0.00022998,3]
[313977845,1707903039188,-151.016,0.00022998,3]
[313977846,1707903039197,-151.016,0.00022998,3]
[313977847,1707903039207,-151.016,0.00022998,3]
[313977848,1707903039216,-151.016,0.00022998,3]
[313977849,1707903039227,-151.016,0.00022998,3]
[313977850,1707903039237,-151.016,0.00022998,3]
[313977851,1707903039246,-151.016,0.00022998,3]
[313977852,1707903039256,-151.016,0.00022998,3]
[313977853,1707903039268,-151.016,0.00022998,3]
[313977854,1707903039278,-151.016,0.00022998,3]
[313977855,1707903039288,-151.016,0.00022998,3]
[313977856,1707903039298,-151.016,0.00022998,3]
[313977857,1707903039307,-151.016,0.00022998,3]
[313977858,1707903039317,-151.016,0.00022998,3]
[313977859,1707903039327,-151.016,0.00022998,3]
[313977860,1707903039337,-151.016,0.00022998,3]
[313977861,1707903039346,-151.016,0.00022998,3]
[313977862,1707903039355,-151.016,0.00022998,3]
[313977863,1707903039364,-151.016,0.00022998,3]
[313977864,1707903039374,-151.016,0.00022998,3]
[313977865,1707903039383,-151.016,0.00022998,3]
[313977866,1707903039392,-151.016,0.00022998,3]
[313977867,1707903039402,-151.016,0.00022998,3]
[313977869,1707903039411,-151.016,0.00022998,3]
[313977871,1707903039420,-151.016,0.00022998,3]